Cogmind - Beta 12 @@@ ROGUE MODE // 2023.10.08 @ 21:53:26 Player: Figgis Result: Destroyed by P-70 Sage with Tesla Rifle Performance ------------- Evolutions (5) 2500 Regions Visited (11) 2200 Robots Destroyed (103) 515 Value Destroyed (3697) 3697 Prototype IDs (4) 80 Alien Tech Used (0) 0 Bonus (590) 590 TOTAL SCORE: 9582 Bonus ------- High Alert Combat Kills 55 Follower Combat Kills 235 Aligned with FarCom 300 Cogmind --------- Core Integrity 0/1000 Matter 188/300 Energy 98/100 System Corruption 10% Temperature Cool (0) Movement Core (50) Location -5/Factory Parts ------- > --- POWER (2) -------- (None) > --- PROPULSION (5) --- (None) > --- UTILITY (6) ------ Enhanced Optical Array Armor Integrity Analyzer > --- WEAPON (4) ------- (None) > --- INVENTORY (5) ---- Light Angular Momentum Engine High-capacity Matter Pod (200) Improved Light Armor Plating Improved Shield Generator Improved Shield Generator Peak State ------------ > --- POWER ------------ Light Deuterium Engine Nuclear Core > --- PROPULSION ------- Improved Titanium Leg Flexi-carbon Leg Flexi-carbon Leg Flexi-carbon Leg Flexi-carbon Leg > --- UTILITY ---------- Improved Heat Sink Huge Storage Unit Enhanced Optical Array Microactuators Reactive Plating Reflective Plating > --- WEAPON ----------- Plasma Rifle Advanced Assault Cannon Gauss Cannon Bore Cannon > --- INVENTORY -------- Reinforced Deuterium Engine Light Angular Momentum Engine Aluminum Leg Carbon-fiber Leg Carbon-fiber Leg Carbon-fiber Leg Flexi-carbon Leg Flexi-carbon Leg High-capacity Matter Pod High-capacity Matter Pod Armor Integrity Analyzer Improved Light Armor Plating Improved Light Armor Plating Dynamic Insulation System Gauss Rifle Gauss Rifle Advanced Assault Cannon [Rating: 72] Favorites ----------- Power Ion Engine Engine Ion Engine Power Core Light Nuclear Core Propulsion Aluminum Leg Leg Aluminum Leg Utility Large Storage Unit Device Shield Generator Storage Large Storage Unit Processor Advanced Targeting Computer Protection Medium Armor Plating Weapon Beamcaster Energy Gun Beamcaster Ballistic Gun Autogun Ballistic Cannon Magnetic Acceleration Cannon Slashing Weapon Greatsword Build | -11 -10 -10 -9 -9 -9 -8 -8 -7 -6 -6 -5 ------- Run | Jun Mat Min Mat Min Exi Min Mat Fac Fac Ext Fac Slots Evolved 10 | . . . 2 . . . 2 2 2 . 2 Power 1 | . . . . . . . . 1 . . . Propulsion 3 | . . . . . . . 1 1 1 . . Utility 4 | . . . 2 . . . 1 . . . 1 Weapon 2 | . . . . . . . . . 1 . 1 Parts Attached 113 | 6 5 18 4 1 3 2 7 28 5 16 18 Power 19 | 1 1 3 2 . . . 2 6 . 2 2 Engine 16 | 1 1 3 2 . . . 2 4 . 1 2 Core 3 | . . . . . . . . 2 . 1 . Reactor . | . . . . . . . . . . . . Propulsion 33 | 2 . 6 . 1 . 1 2 8 1 6 6 Treads . | . . . . . . . . . . . . Leg 33 | 2 . 6 . 1 . 1 2 8 1 6 6 Wheel . | . . . . . . . . . . . . Hover . | . . . . . . . . . . . . Flight . | . . . . . . . . . . . . Utility 31 | 1 2 5 2 . 2 1 1 8 2 3 4 Device 11 | . . 1 1 . 1 1 . 5 . 1 1 Storage 3 | 1 1 . . . . . . . 1 . . Processor 5 | . . 1 . . 1 . . 1 1 . 1 Hackware . | . . . . . . . . . . . . Protection 12 | . 1 3 1 . . . 1 2 . 2 2 Artifact . | . . . . . . . . . . . . Weapon 30 | 2 2 4 . . 1 . 2 6 2 5 6 Energy Gun 5 | 2 . 1 . . . . 1 . . 1 . Energy Cannon . | . . . . . . . . . . . . Ballistic Gun 12 | . 2 3 . . 1 . 1 . 1 . 4 Ballistic Cannon 9 | . . . . . . . . 2 1 4 2 Launcher . | . . . . . . . . . . . . Special Weapon . | . . . . . . . . . . . . Impact Weapon . | . . . . . . . . . . . . Slashing Weapon 4 | . . . . . . . . 4 . . . Piercing Weapon . | . . . . . . . . . . . . Special Melee Weapon . | . . . . . . . . . . . . Unidentified Prototypes 4 | . . . 1 . 1 . . 2 . . . Parts Lost 51 | . . 10 . . . 1 . 4 . 11 25 Power 6 | . . 2 . . . . . . . 2 2 Propulsion 16 | . . 1 . . . . . 2 . 4 9 Utility 16 | . . 4 . . . 1 . 2 . 3 6 Weapon 13 | . . 3 . . . . . . . 2 8 Highest Loss Streak 25 | . . 4 . . . 1 . 1 . 4 25 To Critical Strikes 1 | . . . . . . . . . . 1 . Average Slot Usage (%) 94 | . 99 97 99 100 97 88 93 92 92 95 79 Engine 10 | . 14 13 11 11 11 11 9 13 6 6 4 Core 1 | . . . . . . . . . 6 5 4 Leg 26 | . 28 27 22 22 22 22 27 29 33 31 23 Device 10 | . . 4 10 11 11 12 18 13 13 12 8 Storage 9 | . 14 14 11 11 11 11 9 7 6 6 4 Processor 7 | . . 4 11 11 11 11 9 8 6 6 6 Protection 7 | . 13 2 10 11 11 9 7 7 6 6 6 Energy Gun 3 | . . 5 11 11 8 . 5 1 . . 3 Ballistic Gun 8 | . 27 21 11 11 10 11 9 1 . . . Ballistic Cannon 3 | . . . . . . . . . 5 15 12 Slashing Weapon 1 | . . . . . . . . 5 6 1 . Naked Turns . | . . . . . . . . . . . . Heaviest Build 135 | 12 36 38 41 41 45 45 47 50 112 128 135 Greatest Support 100 | 20 20 20 20 25 25 25 43 63 78 100 100 Greatest Overweight (x) 3 | . 1 3 2 2 1 2 1 1 1 2 2 Average Overweight (x) . | . . 1 1 1 1 1 . . . 1 . Largest Inventory Capacity 25 | 8 15 15 15 15 15 15 15 15 25 25 25 Average Capacity 16 | 7 13 15 15 15 15 15 15 15 18 25 21 Most Carried 22 | 5 15 15 15 15 15 15 15 15 15 22 20 Average Carried 14 | 2 9 13 13 14 14 14 14 14 13 18 14 Final Capacity 25 | 8 15 15 15 15 15 15 15 15 25 25 5 Final Carried 20 | 2 15 15 15 15 13 15 15 14 14 20 5 Class Distribution -------------------- 66% | Mutant 18% | Gladiator 7% | Tank 3% | Scavenger-Mutant Dominant Class ---------------- Mutant | -10/Materials Mutant | -10/Mines Mutant | -9/Materials Mutant | -9/Mines Mutant | -9/Exiles Mutant | -8/Mines Mutant | -8/Materials Gladiator | -7/Factory Gladiator | -6/Factory Tank | -6/Extension Scavenger-Tank | -5/Factory Resources | -11 -10 -10 -9 -9 -9 -8 -8 -7 -6 -6 -5 ----------- Run | Jun Mat Min Mat Min Exi Min Mat Fac Fac Ext Fac Matter Collected 3344 | 162 330 386 32 126 . 60 80 349 48 1479 292 Remotely . | . . . . . . . . . . . . Salvage Created 4217 | . 320 373 32 . . 617 847 567 48 1033 380 Parts 219 | . 25 14 5 . . 28 47 45 1 37 17 Haulers Intercepted . | . . . . . . . . . . . . Recyclers Shooed . | . . . . . . . . . . . . Parts Field Recycled . | . . . . . . . . . . . . Retrieved Matter . | . . . . . . . . . . . . Parts Self-Destructed . | . . . . . . . . . . . . Prevented . | . . . . . . . . . . . . Kills | -11 -10 -10 -9 -9 -9 -8 -8 -7 -6 -6 -5 ------- Run | Jun Mat Min Mat Min Exi Min Mat Fac Fac Ext Fac Combat Hostiles Destroyed 79 | . 8 10 1 . . 14 15 11 1 16 3 Melee 15 | . . . . . . . . 10 1 4 . Guns 49 | . 8 10 1 . . 14 15 1 . . . Cannons 14 | . . . . . . . . . . 12 2 AOE 1 | . . . . . . . . . . . 1 Classes Destroyed 16 | . 4 3 . . . 3 1 1 . 3 1 Worker 3 | . . . . . . 1 . 2 . . . Builder 5 | . 1 . . . . . 1 . . 1 2 Tunneler 1 | . . . . . . . . . . 1 . Recycler 6 | . . 1 . . . . 1 . . 3 1 Carrier 1 | . . . . . . . . . . 1 . Mechanic 1 | . . . . . . . . . . . 1 Watcher 10 | . 2 . 1 . . . 3 1 . 1 2 Swarmer 17 | . 3 2 1 . . 4 3 . . 4 . Grunt 38 | . 5 4 . . . 7 11 6 . 4 1 Brawler 3 | . . . . . . 2 . . . 1 . Sentry 7 | . . . . . . . 1 1 . 5 . Demolisher 1 | . . 1 . . . . . . . . . Hunter 3 | . . . . . . 1 . 1 . . 1 Programmer 5 | . . . . . . . . 3 1 . 1 Behemoth 2 | . . . . . . . . . . 2 . Assembled 3 | . . 3 . . . . . . . . . Best Kill Streak 7 | . 3 4 1 . . 4 7 2 1 6 3 Combat Bots Only 5 | . 3 3 1 . . 4 5 2 1 5 2 Max Kills in Single Turn 2 | . 1 1 1 . . 2 2 1 1 2 2 Gunslinging . | . . . . . . . . . . . . Exploded 1 | . . . . . . . . . . . 1 Melee 1 | . . . . . . . . 1 1 1 . Uniques/NPCs Destroyed . | . . . . . . . . . . . . Combat | -11 -10 -10 -9 -9 -9 -8 -8 -7 -6 -6 -5 -------- Run | Jun Mat Min Mat Min Exi Min Mat Fac Fac Ext Fac Damage Taken 8115 | . 259 1199 81 . . 188 402 840 87 1936 3123 Core 1544 | . 38 121 10 . . . 78 91 22 172 1012 Absorbed by Shields 904 | . . 74 . . . . 151 328 32 319 . Core Remaining (%) 80 | 100 . 36 . . . 97 85 87 . 77 . Volleys Fired 164 | . 24 36 4 . . . 1 15 . 63 21 Largest 4 | . 2 2 2 . . . 2 2 . 3 4 Hottest 228 | . 46 100 100 . . . 100 100 . 158 228 Shots Fired 515 | . 48 71 8 . . 59 77 28 . 153 71 Gun 313 | . 48 71 8 . . 59 77 28 . . 22 Cannon 202 | . . . . . . . . . . 153 49 Launcher . | . . . . . . . . . . . . Special . | . . . . . . . . . . . . Kinetic 475 | . 48 61 4 . . 59 75 15 . 153 60 Thermal 40 | . . 10 4 . . . 2 13 . . 11 Explosive . | . . . . . . . . . . . . Electromagnetic . | . . . . . . . . . . . . Robot Hit Streak 20 | . 7 7 1 . . 7 20 6 . 14 4 Robot Miss Streak 7 | . 2 4 4 . . 3 3 3 . 7 6 Penetration Max 1 | . . . . . . 1 1 . . 1 1 Secondary Targets 4 | . . 4 . . . . . . . . . Max Gunslinging Chain 1 | . . 1 . . . . . . . . . Autonomous 134 | . . . . . . 59 75 . . . . Shots Hit Robots 346 | . 28 46 2 . . 43 62 47 7 87 24 Core Hits 161 | . 13 17 2 . . 20 27 17 1 42 22 Critical Kills 10 | . 1 . . . . . . . . 9 . Critical Parts Destroyed 12 | . . . . . . 1 3 . . 7 1 Critical Strikes 37 | . 1 . . . . 1 3 1 1 28 2 Destroy 25 | . 1 . . . . 1 3 . . 19 1 Blast 9 | . . . . . . . . . . 8 1 Sever 3 | . . . . . . . . 1 1 1 . Melee Attacks 59 | . . . . . . . . 36 7 16 . Impact . | . . . . . . . . . . . . Slashing 59 | . . . . . . . . 36 7 16 . Piercing . | . . . . . . . . . . . . Sneak Attacks 2 | . . . . . . . . 2 . . . Combat Hostiles . | . . . . . . . . . . . . Follow-up Attacks . | . . . . . . . . . . . . Damage Inflicted 11303 | . 409 781 42 . . 1355 2029 1967 348 3380 992 Guns 5382 | . 409 778 42 . . 1355 2029 499 . . 270 Cannons 3265 | . . . . . . . . . . 2757 508 Explosions 214 | . . . . . . . . . . . 214 Melee 2438 | . . . . . . . . 1468 348 622 . Ramming 4 | . . 3 . . . . . . . 1 . Kinetic 8209 | . 409 649 22 . . 1355 2005 305 . 2757 707 Thermal 600 | . . 129 20 . . . 24 194 . . 233 Explosive . | . . . . . . . . . . . . Electromagnetic 52 | . . . . . . . . . . . 52 Impact . | . . . . . . . . . . . . Slashing 2438 | . . . . . . . . 1468 348 622 . Piercing . | . . . . . . . . . . . . Highest Corruption 10 | . . . . . . . 1 3 . . 10 Average Corruption 2 | . . . . . . . 1 1 . . 6 Corruption Purged 3 | . . . . . . . . 3 . . . Corruption Blocked . | . . . . . . . . . . . . Effects 21 | . . . . . . . 4 13 . . 4 Message Errors 11 | . . . . . . . . 8 . . 3 Matter Fused 4 | . . . . . . . 1 3 . . . Heat Flow Errors 1 | . . . . . . . . . . . 1 Energy Discharges 3 | . . . . . . . 1 2 . . . Data Loss (minor) 1 | . . . . . . . 1 . . . . Misfires 1 | . . . . . . . 1 . . . . Overload Shots . | . . . . . . . . . . . . Overflow Damage 116 | . . . . . . . . 42 27 25 22 Projectiles 25 | . . . . . . . . . . 25 . Explosions 22 | . . . . . . . . . . . 22 Melee 69 | . . . . . . . . 42 27 . . Knockbacks 13 | . . . . . . . . . . 9 4 Impact . | . . . . . . . . . . . . Kinetic 13 | . . . . . . . . . . 9 4 Secondary . | . . . . . . . . . . . . Self-Inflicted Damage 63 | . . . . . . . . . . . 63 Shots 1 | . . . . . . . . . . . 1 Rammed . | . . . . . . . . . . . . Targets Rammed 2 | . . 1 . . . . . . . 1 . Kicked 2 | . . 1 . . . . . . . 1 . Crushed . | . . . . . . . . . . . . Highest Temperature 468 | . 87 230 120 . . . 45 436 . 415 468 Average Temperature 131 | . 27 64 46 . . . 25 198 . 154 175 Received Heat Transfer 1236 | . 120 147 . . . 45 220 165 . 431 108 Effects 15 | . . . . . . . . 1 . 10 4 Shutdowns 8 | . . . . . . . . . . 6 2 Energy Bleed 5 | . . . . . . . . 1 . 3 1 Damage (minor) 2 | . . . . . . . . . . 1 1 Siege Activations . | . . . . . . . . . . . . Robots Corrupted . | . . . . . . . . . . . . Combat Hostiles . | . . . . . . . . . . . . Parts Fried . | . . . . . . . . . . . . Impact Corruptions . | . . . . . . . . . . . . Robots Melted . | . . . . . . . . . . . . Combat Hostiles . | . . . . . . . . . . . . Parts Melted . | . . . . . . . . . . . . Heat Transferred 805 | . . 222 37 . . . 37 259 . . 250 Parts Sabotaged . | . . . . . . . . . . . . Parts Stolen . | . . . . . . . . . . . . Parts Stripped . | . . . . . . . . . . . . Power Chain Reactions 1 | . . . . . . . . . . . 1 Missiles Intercepted . | . . . . . . . . . . . . Alert | -11 -10 -10 -9 -9 -9 -8 -8 -7 -6 -6 -5 ------- Run | Jun Mat Min Mat Min Exi Min Mat Fac Fac Ext Fac Peak Influence 593 | . 251 95 61 . . 175 593 193 82 280 380 Initial 178 | . . 30 19 . . . 3 178 82 14 102 Average 82 | . 90 30 29 . . 80 386 73 75 81 139 Maximum Alert Level 2 | . 1 . . . . . 2 . . 1 1 Low Security (%) 92 | 100 87 100 100 100 . 100 22 100 100 88 82 Level 1 5 | . 12 . . . . . 35 . . 11 17 Level 2 2 | . . . . . . . 41 . . . . Level 3 . | . . . . . . . . . . . . Level 4 . | . . . . . . . . . . . . Level 5 . | . . . . . . . . . . . . High Security . | . . . . . . . . . . . . Max Security . | . . . . . . . . . . . . Squads Dispatched 14 | . 1 . . . . . 2 6 1 . 4 Investigation 2 | . . . . . . . 1 1 . . . Extermination 5 | . . . . . . . . 3 1 . 1 Reinforcement 7 | . 1 . . . . . 1 2 . . 3 Assault . | . . . . . . . . . . . . Garrison . | . . . . . . . . . . . . Intercept . | . . . . . . . . . . . . Searches Triggered . | . . . . . . . . . . . . Construction Impeded 1 | . . . . . . . . . . . 1 Haulers Reinforced . | . . . . . . . . . . . . Active Scanning Responses . | . . . . . . . . . . . . Cargo Convoy Interrupts . | . . . . . . . . . . . . Stealth | -11 -10 -10 -9 -9 -9 -8 -8 -7 -6 -6 -5 --------- Run | Jun Mat Min Mat Min Exi Min Mat Fac Fac Ext Fac Distress Signals 5 | . . 1 . . . . 2 . . 1 1 Communications Jammed . | . . . . . . . . . . . . Distress Signals . | . . . . . . . . . . . . Times Spotted 134 | . 10 14 4 . . 13 18 22 1 31 21 Peak Tracking Total 10 | . 2 6 2 . . 3 4 4 1 4 10 Tactical Retreats 11 | . . 2 . . . . 1 1 . 5 2 Traps | -11 -10 -10 -9 -9 -9 -8 -8 -7 -6 -6 -5 ------- Run | Jun Mat Min Mat Min Exi Min Mat Fac Fac Ext Fac Traps Triggered 9 | . . 1 . . . . 2 3 . 1 2 Indirectly 2 | . . . . . . . . . . . 2 Trap Hack Attempts . | . . . . . . . . . . . . Triggered . | . . . . . . . . . . . . Disarmed . | . . . . . . . . . . . . Reprogrammed . | . . . . . . . . . . . . Reused . | . . . . . . . . . . . . Traps Extracted . | . . . . . . . . . . . . Installed . | . . . . . . . . . . . . Triggered 1 | . . . . . . . . . . . 1 Machines | -11 -10 -10 -9 -9 -9 -8 -8 -7 -6 -6 -5 ---------- Run | Jun Mat Min Mat Min Exi Min Mat Fac Fac Ext Fac Machines Disabled 18 | . . . 1 . . 1 7 . . . 9 Max in Single Turn 4 | . . . 1 . . 1 3 . . . 4 Machines Repaired . | . . . . . . . . . . . . Machines Sabotaged . | . . . . . . . . . . . . Overloaded Fab Kills . | . . . . . . . . . . . . Hacking | -11 -10 -10 -9 -9 -9 -8 -8 -7 -6 -6 -5 --------- Run | Jun Mat Min Mat Min Exi Min Mat Fac Fac Ext Fac Machines Accessed 19 | . 3 1 . . . . 1 5 . 8 1 Terminals 16 | . 3 . . . . . 1 3 . 8 1 Fabricators . | . . . . . . . . . . . . Repair Stations . | . . . . . . . . . . . . Recycling Units 1 | . . . . . . . . 1 . . . Scanalyzers 1 | . . . . . . . . 1 . . . Garrison Access . | . . . . . . . . . . . . Total Hacks 35 | . 9 1 . . . . 2 8 . 11 4 Successful 14 | . 3 1 . . . . . 1 . 7 2 Failed 21 | . 6 . . . . . 2 7 . 4 2 Catastrophic 5 | . . . . . . . . 4 . 1 . Database Lockouts . | . . . . . . . . . . . . Manual 20 | . 9 . . . 1 . 2 5 . . 3 Terminals 32 | . 9 . . . . . 2 6 . 11 4 Fabricators . | . . . . . . . . . . . . Repair Stations . | . . . . . . . . . . . . Recycling Units 1 | . . . . . . . . 1 . . . Scanalyzers 1 | . . . . . . . . 1 . . . Garrison Access . | . . . . . . . . . . . . Terminal Hacks 14 | . 3 1 . . . . . 1 . 7 2 Robot Analysis 2 | . 2 . . . . . . . . . . Open Door 8 | . . 1 . . . . . . . 7 . Branch Access Points 2 | . 1 . . . . . . . . . 1 Unreport Threat 1 | . . . . . . . . 1 . . . Zone Layout 1 | . . . . . . . . . . . 1 Fabricator Hacks . | . . . . . . . . . . . . Repair Station Hacks . | . . . . . . . . . . . . Recycling Unit Hacks . | . . . . . . . . . . . . Scanalyzer . | . . . . . . . . . . . . Garrison Access Hacks . | . . . . . . . . . . . . Unauthorized Hacks . | . . . . . . . . . . . . Terminals . | . . . . . . . . . . . . Fabricators . | . . . . . . . . . . . . Repair Stations . | . . . . . . . . . . . . Recycling Units . | . . . . . . . . . . . . Scanalyzers . | . . . . . . . . . . . . Garrison Access . | . . . . . . . . . . . . Data Cores Recovered . | . . . . . . . . . . . . Used . | . . . . . . . . . . . . Hacking Detections 11 | . 3 . . . . . 1 4 . 2 1 Full Trace Events 1 | . . . . . . . . 1 . . . Feedback Events . | . . . . . . . . . . . . Feedback Blocked . | . . . . . . . . . . . . Robot Schematics Acquired . | . . . . . . . . . . . . Robots Built . | . . . . . . . . . . . . Authchips . | . . . . . . . . . . . . Time . | . . . . . . . . . . . . Total Robot Build Rating . | . . . . . . . . . . . . Part Schematics Acquired . | . . . . . . . . . . . . Parts Built . | . . . . . . . . . . . . Authchips . | . . . . . . . . . . . . Time . | . . . . . . . . . . . . Total Part Build Rating . | . . . . . . . . . . . . Parts Repaired . | . . . . . . . . . . . . Time . | . . . . . . . . . . . . Parts Recycled . | . . . . . . . . . . . . Recycled Matter . | . . . . . . . . . . . . Retrieved Matter . | . . . . . . . . . . . . Retrieved Components . | . . . . . . . . . . . . Parts Scanalyzed . | . . . . . . . . . . . . Part Schematics Acquired . | . . . . . . . . . . . . Parts Damaged . | . . . . . . . . . . . . Bothacking | -11 -10 -10 -9 -9 -9 -8 -8 -7 -6 -6 -5 ------------ Run | Jun Mat Min Mat Min Exi Min Mat Fac Fac Ext Fac Used RIF Installer . | . . . . . . . . . . . . Robots Hacked . | . . . . . . . . . . . . Non-combat . | . . . . . . . . . . . . Combat . | . . . . . . . . . . . . Robot Hacks Applied . | . . . . . . . . . . . . Relay Couplers Released . | . . . . . . . . . . . . Fabnet Peak Effective % . | . . . . . . . . . . . . Robots Rewired . | . . . . . . . . . . . . Allies Hacked . | . . . . . . . . . . . . Hacks Repelled . | . . . . . . . . . . . . Allies | -11 -10 -10 -9 -9 -9 -8 -8 -7 -6 -6 -5 -------- Run | Jun Mat Min Mat Min Exi Min Mat Fac Fac Ext Fac Total Allies 11 | . . 3 . . . . . . . 8 . Largest Group 5 | . . 2 1 . . . . . . 5 . Highest-Rated Group 160 | . . 42 31 . . . . . . 160 . Highest-Rated Ally 39 | . . 31 31 . . . . . . 39 . Total Orders . | . . . . . . . . . . . . Ally Attacks 61 | . . . . . . . . . . 61 . Total Damage 1149 | . . . . . . . . . . 1149 . Kills 7 | . . . . . . . . . . 7 . Allies Corrupted . | . . . . . . . . . . . . Allies Melted 1 | . . . . . . . . . . 1 . Intel | -11 -10 -10 -9 -9 -9 -8 -8 -7 -6 -6 -5 ------- Run | Jun Mat Min Mat Min Exi Min Mat Fac Fac Ext Fac Robot Analysis Total 2 | . 2 . . . . . . . . . . Derelict Logs Recovered 3 | . . 1 . 2 . . . . . . . Drone Launches . | . . . . . . . . . . . . Drone Recoveries . | . . . . . . . . . . . . Exploration | -11 -10 -10 -9 -9 -9 -8 -8 -7 -6 -6 -5 ------------- Run | Jun Mat Min Mat Min Exi Min Mat Fac Fac Ext Fac Turns Passed 10585 | 57 593 1455 427 756 934 1276 503 1857 455 1779 493 Spaces Moved 5352 | 43 251 662 157 291 489 595 272 1244 276 755 317 Core 163 | 11 . . . . . . . . . . 152 Treads . | . . . . . . . . . . . . Legs 5189 | 32 251 662 157 291 489 595 272 1244 276 755 165 Wheels . | . . . . . . . . . . . . Hover . | . . . . . . . . . . . . Flight . | . . . . . . . . . . . . Fastest Speed 50 | 50 120 190 190 190 190 190 120 120 124 192 50 Average Speed 172 | 102 184 191 257 256 190 190 173 122 140 195 124 Slowest Speed 330 | 120 190 330 260 260 190 260 190 193 194 263 260 Overloaded Moves . | . . . . . . . . . . . . Propulsion Burnouts . | . . . . . . . . . . . . Robots Hopped . | . . . . . . . . . . . . Cave-ins Triggered . | . . . . . . . . . . . . Exploration Rate (%) 46 | 4 48 95 13 73 75 99 34 38 11 56 13 Regions Visited 11 Branch Regions 5 Pre-discovered Areas 2 | . . . . 2 . . . . . . . Known Exits Taken 4 | . 1 . 1 1 . 1 . . . . . Unknown Exits Taken 7 | 1 . 1 . . 1 . 1 1 1 1 . Scrap Searched 3 | . . 1 . 1 . 1 . . . . . Spaces Dug 2 | . . . . . . . . 2 . . . Terrain Destroyed 187 | . . . . . . 33 84 2 . 23 45 Melee 2 | . . . . . . . . 2 . . . Projectile 104 | . . . . . . 33 32 . . 23 16 AOE 81 | . . . . . . . 52 . . . 29 Terrain Rammed . | . . . . . . . . . . . . Walls Destroyed . | . . . . . . . . . . . . Machines Disabled . | . . . . . . . . . . . . Actions | -11 -10 -10 -9 -9 -9 -8 -8 -7 -6 -6 -5 --------- Run | Jun Mat Min Mat Min Exi Min Mat Fac Fac Ext Fac Total 6327 | 55 345 792 173 300 495 741 304 1509 333 907 373 Wait 469 | . 40 56 5 5 . 141 13 139 40 25 5 Move 5341 | 42 250 661 156 290 488 594 271 1243 275 754 317 Hop . | . . . . . . . . . . . . Pick Up 106 | 7 20 13 3 2 1 3 6 19 4 24 4 Fast Attach 12 | 1 . 2 . . . . 1 8 . . . Attach 69 | 5 1 10 3 . 1 1 3 9 3 15 18 Detach 3 | . . . . . . . . 1 1 . 1 Swap 32 | . 4 6 1 1 2 1 3 11 2 1 . Drop 65 | . 6 7 1 2 3 1 6 28 1 3 7 Fire 164 | . 24 36 4 . . . 1 15 . 63 21 Melee 59 | . . . . . . . . 36 7 16 . Ram . | . . . . . . . . . . . . Kick 2 | . . 1 . . . . . . . 1 . Crush . | . . . . . . . . . . . . Escape Stasis 5 | . . . . . . . . . . 5 . Rewire . | . . . . . . . . . . . . Trap . | . . . . . . . . . . . . Miscellaneous . | . . . . . . . . . . . . Route ------- -11/Junkyard -10/Materials (discovered 3 exits: [*Mat] / *Min x2) -10/Mines (discovered 2 exits: [*Mat x2]) -9/Materials -9/Mines (discovered 2 exits: *Mat / *Exi) -9/Exiles (discovered 2 exits: [*Min x2]) -8/Mines (discovered 2 exits: *Mat x2) -8/Materials -7/Factory (discovered 2 exits: *Fac / Sto) -6/Factory -6/Extension -5/Factory (discovered 2 exits: Upp x2) History --------- Turn | Location | Event 10 | -11/Junkyard | Discovered new exit (range 15) 58 | -11/Junkyard | Entered Materials 231 | -10/Materials | Identified exit to Mines 301 | -10/Materials | Build established: Mutant 574 | -10/Materials | Discovered new exit (range 11) 651 | -10/Materials | Entered Mines 850 | -10/Mines | Assembled infested the area 919 | -10/Mines | Lost 3 parts (1p1u1w) 1231 | -10/Mines | Discovered new exit (range 8) 1469 | -10/Mines | Core integrity fell below 50% 1510 | -10/Mines | Lost 4 parts (1p1u2w) 1580 | -10/Mines | Met a Derelict who couldn't figure out how to use a Trap Extractor 2075 | -10/Mines | Discovered new exit (range 15) 2087 | -10/Mines | Received a Mining Laser from a helpful Derelict 2106 | -10/Mines | Entered Materials 2106 | -9/Materials | Accompanied by 1 ally 2106 | -9/Materials | Evolved 2 slots: Utility x2 2426 | -9/Materials | Discovered new exit (range 11) 2488 | -9/Materials | Identified exit to Mines 2533 | -9/Materials | Entered Mines 2544 | -9/Mines | Received a Rocket Launcher from a helpful Derelict 2804 | -9/Mines | Discovered new exit (range 8) 2832 | -9/Mines | Identified exit to Materials 3022 | -9/Mines | Learned location of Zion (-7) 3074 | -9/Mines | Learned location of Storage (-7) 3279 | -9/Mines | Deemed a non-threat by the Exiles lab entrance 3281 | -9/Mines | Discovered new exit (range 5) 3287 | -9/Mines | Identified exit to Exiles 3289 | -9/Mines | Entered Exiles 3335 | -9/Exiles | Met 8R-AWN 3369 | -9/Exiles | Met EX-HEX 3422 | -9/Exiles | Met EX-BIN 3445 | -9/Exiles | Aligned with FarCom system 3447 | -9/Exiles | Given EX-Vault access code 3567 | -9/Exiles | Discovered new exit (range 14) 3725 | -9/Exiles | Met EX-DEC 3867 | -9/Exiles | Discovered new exit (range 15) 4028 | -9/Exiles | Opened EX-Vault 4038 | -9/Exiles | Found Prototype Ballistic Gun 4040 | -9/Exiles | Identified AWS/Gauss 4083 | -9/Exiles | Warned to stay clear of 0b10 Research branches 4223 | -9/Exiles | Left Exiles lab with AWS/Gauss 4223 | -9/Exiles | Entered Mines 4342 | -8/Mines | Discovered exit to Materials (range 5) 4417 | -8/Mines | Discovered exit to Materials (range 10) 5499 | -8/Mines | Entered Materials 5499 | -8/Materials | Evolved 2 slots: Propulsion x1, Utility x1 5971 | -8/Materials | Discovered new exit (range 16) 6002 | -8/Materials | Entered Factory 6002 | -7/Factory | Evolved 2 slots: Power x1, Propulsion x1 6003 | -7/Factory | Identified exit to Storage 7189 | -7/Factory | Build established: Gladiator 7854 | -7/Factory | Discovered new exit (range 5) 7859 | -7/Factory | Entered another Factory area 7859 | -6/Factory | Evolved 2 slots: Propulsion x1, Weapon x1 8292 | -6/Factory | Discovered new exit (range 11) 8314 | -6/Factory | Entered Extension 8387 | -6/Extension | Rescued a captive Derelict 8469 | -6/Extension | Rescued a captive Derelict 8614 | -6/Extension | Rescued a captive Derelict 8761 | -6/Extension | Rescued a captive Derelict 8833 | -6/Extension | Lost 3 parts (2n1w) 8930 | -6/Extension | Rescued a captive Derelict 8930 | -6/Extension | Rescued a captive Derelict 9034 | -6/Extension | Rescued a captive Derelict 9035 | -6/Extension | Rescued a captive Derelict 9072 | -6/Extension | Spotted B-75 Beast 9103 | -6/Extension | Build established: Tank 9535 | -6/Extension | Destroyed B-75 Beast 9586 | -6/Extension | Spotted B-75 Beast 9689 | -6/Extension | Disrupted transfer network 9720 | -6/Extension | Destroyed B-75 Beast 9734 | -6/Extension | Lost 4 parts (1p2n1u) 10022 | -6/Extension | Discovered new exit (range 3) 10093 | -6/Extension | Entered Factory 10093 | -5/Factory | Evolved 2 slots: Utility x1, Weapon x1 10119 | -5/Factory | Build established: Scavenger-Mutant 10241 | -5/Factory | Identified exit to Upper Caves 10534 | -5/Factory | Lost 25 parts (2p9n6u8w) 10549 | -5/Factory | Core integrity fell below 50% 10572 | -5/Factory | Core integrity fell below 20% 10581 | -5/Factory | System corruption reached 10% 10586 | -5/Factory | Destroyed by P-70 Sage with Tesla Rifle Last Messages --------------- 10513_ K-01 Serf collects debris. 10526_ FZK9=OHUU3AILI 10572_ K-01 Serf cleans the Fusion Modulator. 10573_ Slug penetrates Fusion Modulator. 10577_ Penetrated by Slug. Map ----- +----------------------------------------------------+ | ????????????????????????????# """ """ | | ????????????????????????????# % | | ????????????????????????????+ """ """ """ """ ## | | ????????????????????????????# """ """ """ """ #? | | ????????????????????????????+ """ """ """ "%" #? | | ????????????????????????????# % #? | | ????????????????????????????+ #? | | ????????????????????????????###+######+#### #? | | ??????????????????????????????# # #? | | ??????????????????????????????# ! "" # #? | | ??????????????????????????????# Y" # +? | | ??????????????????????????????# """ "" " #? | | ??????????????????????????????# """ # #? | | ??????????????????????????????# / """ # #? | | ??????????????g???????????????# !# #? | | ??????????????b??????##################g### #? | | ?????????????????????# g #? | | ?????????????????????# ! l #? | | ???????????????g?????# """ """ """ """ """ ## | | ?????????????????????# """ """ """ """ """ "# | | ?????????????????????# """ """ """ """ """ "# | | ?????????????????????# p p h H "# | | ?????????????????????# """ """ """ """ """ T# | | ?????????????????????# """ """ """ """ """ "# | | ?????????????????????# """ """ """ """ """ "# | | ?????????????????????# @ h "# | | ?????????????????????# p ## | | ?????????????????????# kk | | ?????????????????????#########+############+#+#### | | ???????????????????????????? ????????????????? | | ??????????????????????????# """"" ??????s???????? | | ?????????????????w????????# """"" #?????????????? | | ??????????????????????????# """ #?????????????? | | ??????????????????????????# #?????????????? | | ??????????????????????????#! """"" #?????????????? | | ??????????????????????????# """"" #?????????????? | | ??????????????????????????+ """ #?????????????? | | ??????????????????????????# [#?????????????? | | ?????????????????w????????###???#?##?????????????? | | ?????????????????????????????????????????????????? | | ?????????????????????????????????????????????????? | | ?????????????????????????????????????????????????? | | ?????????????????????????????????????????????????? | | ?????????????????????????????????????????????????? | | ?????????????????????????????????????????????????? | | ?????????????????????????????????????????????????? | | ?????????????????????????????????????????????????? | | ?????????????????????????????????????????????????? | | ?????????????????????????????????????????????????? | | ?????????????????????????????????????????????????? | +----------------------------------------------------+ Best States ------------- Heat Dissipation 54 Energy Generation 29 Energy Capacity 340 Matter Stores 300 Matter Capacity 300 Sight Range 22 Robot Scan Range 15 Terrain Scan Density 10 EM Shielding 2 Armor Coverage 300 Resistance: KI 20 Resistance: TH 10 Melee Speed Boost 20 Evasion (%) 55 Targeting Accuracy 8 Armor Integrity Analysis 30 Particle Charging 15 Item Schematics ----------------- None Robot Schematics ------------------ None Fabricated ------------ Nothing Alien Tech Used ----------------- None Achievements -------------- Preemptive Strike Challenges ------------ None Game ------ Seed VariableShadeBlade Manual? 0 Play Time 01:08:45 Cumulative 36.0 hours Start 2023.10.08 @ 18:40:25 End 2023.10.08 @ 21:53:26 Sessions 1 Manual Loads 0 Difficulty Rogue Special Mode None Game No. 67 Rogue 64 Adventurer 3 Explorer 0 Win Type - Total 0 Types 0/0/0/0/0/0/0/0/0 Lore% 22 Gallery% 36 Achievement% 26 Wizard Run 0 Options --------- ASCII 0 Keyboard 0 Movement Mouse Keybinds 0 Fullscreen 2 Font 18/SmallcapsGlow Map View 76x50 Tactical HUD 1 Map Filters NONE Filters NONE Steam 1 RUN: d7e784d0-504e-4e02-8989-534482b382a5